bitfinex/quotes_ETHUSD_20260207
["timestamp","ask_amount","ask_price","bid_price","bid_amount"]
[1770466117838,1.14547766,2043.7,2042.2,1.11144025]
[1770466117985,1.14547766,2043.7,2042.5,1.22397241]
[1770466118190,1.14547766,2043.7,2042.4,1.22401064]
[1770466118500,1.14547766,2043.2,2041.7,1.22446889]
[1770466118810,1.14547766,2043.2,2041.5,4.89829974]
[1770466119014,1.14547766,2043.2,2041.6,1.2244989]
[1770466119190,1.22598802,2043.1,2041.8,1.22440876]
[1770466119394,1.22598802,2043.1,2041.8,1.22437782]
[1770466119601,1.22369065,2043.0,2041.8,1.22437782]
[1770466119802,1.22369065,2043.0,2041.8,1.27876595]
[1770466120312,1.22367464,2043.1,2042.1,0.05438813]
[1770466120516,0.61179695,2043.1,2042.1,0.05438813]
[1770466120811,1.22350375,2043.4,2042.4,0.05438813]
[1770466121197,1.22350375,2043.4,2042.1,0.05438813]
[1770466121400,1.22350375,2043.4,2042.4,0.05438813]
[1770466121602,1.22327151,2043.7,2042.5,1.2239902]
[1770466123018,0.67272752,2043.8,2043.0,0.05438813]
[1770466123196,1.22318107,2043.9,2042.7,0.05438813]
[1770466123397,4.89123389,2044.5,2043.0,0.05438813]
[1770466123610,4.89123389,2044.5,2043.1,1.22363075]
[1770466123990,4.89123389,2044.5,2043.0,1.22364556]
[1770466124192,6.03671155,2044.5,2043.0,1.22364556]
[1770466124422,0.72594446,2044.4,2043.0,1.83550296]
[1770466124797,0.72594446,2044.4,2043.0,1.88989109]
[1770466125046,1.22273305,2044.6,2043.0,3.05581552]
[1770466125198,11.37016693,2045.2,2043.6,0.05438813]
[1770466125199,1.22243411,2045.1,2043.6,0.05438813]
[1770466125521,4.88973644,2045.2,2043.7,1.22327151]
[1770466125908,4.88973644,2045.2,2043.9,0.05438813]
[1770466126096,0.63576888,2045.1,2043.9,0.05438813]
[1770466126302,1.46793706,2045.3,2044.2,0.05438813]
[1770466126626,0.24557806,2045.3,2044.5,0.05438813]
[1770466127416,0.24557806,2045.3,2044.5,1.22031256]
[1770466127612,1.46789895,2045.3,2044.3,4.89163905]
[1770466127927,1.46789895,2045.3,2044.5,1.22276386]
[1770466127928,0.24557806,2045.3,2044.5,1.22276386]
[1770466128122,0.24557806,2045.3,2044.6,0.61683234]
[1770466129204,0.24557806,2045.3,2044.8,0.05438813]
[1770466129599,1.46791056,2045.3,2044.3,1.22291248]
[1770466130397,1.46789615,2045.3,2044.3,1.22291248]
[1770466130595,0.24557806,2045.3,2044.3,1.22291248]
[1770466130802,0.24557806,2045.3,2043.7,4.89285474]
[1770466130803,12.21778368,2045.0,2043.6,1.22328674]
[1770466131027,1.14547766,2044.9,2043.4,1.22342361]
[1770466131209,1.19986579,2044.8,2043.4,1.22345075]
[1770466131415,1.19986579,2044.8,2043.2,1.22356921]
[1770466131628,1.14547766,2044.5,2043.0,0.6118574]
[1770466131837,11.12669415,2044.6,2042.9,1.22374836]
[1770466131838,1.14547766,2044.3,2042.9,1.22374836]
[1770466132005,1.14547766,2044.3,2042.9,1.22369625]
[1770466132207,1.14547766,2044.3,2043.0,1.22368797]
[1770466133526,1.22267325,2044.7,2043.0,1.2780761]
[1770466133830,1.22267325,2044.7,2043.1,1.48053349]
[1770466134017,0.72588439,2044.6,2043.2,1.38309156]
[1770466134221,0.72588439,2044.6,2043.3,0.05438813]
[1770466134604,0.72588439,2044.6,2043.6,0.05438813]
[1770466135210,0.003,2044.4,2043.6,0.05438813]
[1770466135413,0.003,2044.4,2044.2,0.05438813]
[1770466135629,0.24557806,2045.3,2044.2,0.05438813]
[1770466135834,0.24557806,2045.3,2044.6,1.22273305]
[1770466136003,0.24557806,2045.3,2044.8,0.05438813]
[1770466136331,1.22199153,2045.9,2044.8,0.05438813]
[1770466136534,1.22159784,2046.5,2045.1,0.05438813]
[1770466136736,0.61078073,2046.4,2045.1,0.05438813]
[1770466137901,4.88502777,2047.1,2045.6,0.05438813]
[1770466138301,4.88502777,2047.1,2045.9,0.05438813]
[1770466138738,4.88502777,2047.1,2045.6,0.05438813]
[1770466138953,1.14547766,2047.0,2045.1,1.27681446]
[1770466139251,12.21778368,2046.7,2045.2,0.61665509]
[1770466140008,1.22153816,2046.6,2045.3,1.22231457]
[1770466140232,1.22153816,2046.6,2045.2,1.83898987]
[1770466140233,0.05438813,2046.5,2045.2,1.83898987]
[1770466140648,0.05438813,2046.4,2045.2,0.61665509]
[1770466140938,1.27592629,2046.6,2045.2,1.839018]
[1770466141109,1.27592629,2046.6,2045.2,1.22236291]
[1770466141432,1.22153816,2046.6,2045.2,1.22236291]
[1770466142036,4.88615264,2046.7,2045.0,6.05542178]
[1770466142238,4.88615264,2046.7,2045.0,1.22031256]
[1770466142536,4.88615264,2046.7,2045.0,1.16592443]
[1770466142714,0.61076311,2046.6,2045.1,0.61098099]
[1770466143315,4.8857391,2046.8,2045.2,1.22031256]
[1770466143539,1.22129946,2047.0,2045.5,1.22031256]
[1770466143950,1.22129946,2047.0,2045.8,0.05438813]
[1770466144176,4.88451817,2047.3,2045.9,1.2219561]
[1770466144517,1.55288656,2047.4,2045.9,2.38788053]
[1770466144745,1.55288656,2047.4,2046.0,0.72757049]
[1770466145343,0.33181971,2047.4,2046.4,1.22031256]
[1770466145653,4.88260073,2048.1,2046.8,0.05438813]
[1770466145855,0.25540694,2048.2,2047.1,0.05438813]
[1770466146062,4.88046591,2049.0,2047.3,1.2211205]
[1770466146261,1.11071894,2048.6,2046.8,0.05438813]
[1770466146428,1.11071894,2048.6,2047.1,1.22119618]
[1770466146629,1.11071894,2048.6,2047.2,1.22117714]
[1770466147059,1.11071894,2048.6,2046.8,0.05438813]
[1770466147261,1.11071894,2048.3,2046.4,0.05438813]
[1770466147570,1.2183025,2048.2,2046.4,1.06137226]
[1770466147863,1.36590454,2048.7,2047.1,1.22122023]
[1770466148039,1.2203456,2048.6,2046.7,5.94722996]
[1770466148245,0.33222962,2049.0,2047.3,1.06137226]
[1770466148550,0.33222962,2049.0,2045.8,12.13367828]
[1770466148551,0.05438813,2047.6,2045.8,12.13367828]
[1770466148754,0.05438813,2047.8,2045.8,1.06137226]
[1770466148922,0.05438813,2047.2,2045.8,1.06137226]
[1770466149118,8.73937563,2047.8,2045.8,1.06137226]
[1770466149119,8.6849875,2047.8,2046.1,1.22183666]
[1770466149347,6.35052725,2047.7,2046.2,0.43252594]
[1770466149548,6.35052725,2047.7,2046.3,0.43247832]
[1770466149777,6.35052725,2047.7,2046.4,0.43247832]
[1770466150060,6.35052725,2047.7,2046.5,0.43247832]
[1770466150260,6.35052725,2047.6,2046.3,1.22171724]
[1770466150459,6.35052725,2047.6,2046.4,0.43252954]
[1770466150661,6.35052725,2047.6,2046.5,0.43252954]
[1770466150864,6.35052725,2047.6,2046.3,1.22171724]
[1770466151376,6.35052725,2047.6,2047.2,0.001]
[1770466153082,0.05438813,2048.7,2047.2,0.001]
[1770466153371,1.19435865,2048.6,2047.2,0.001]
[1770466154064,0.05438813,2048.4,2047.2,0.001]
[1770466154266,1.24874678,2048.3,2047.2,0.001]
[1770466154570,1.19435865,2048.3,2047.2,0.001]
[1770466155439,1.19435865,2048.3,2046.6,0.05438813]
[1770466155645,1.19435865,2048.3,2046.6,0.67062587]
[1770466155968,1.19435865,2048.3,2046.6,0.61623774]
[1770466156384,1.19435865,2048.1,2047.2,0.05438813]
[1770466156571,1.19435865,2048.1,2047.3,0.05438813]
[1770466157083,1.22058392,2048.2,2047.3,0.05438813]
[1770466157284,2.41494257,2048.2,2046.9,0.05438813]
[1770466157858,1.22058392,2048.2,2047.2,0.05438813]
[1770466158365,4.8823357,2048.4,2047.3,0.05438813]
[1770466158568,1.22040517,2048.5,2047.3,0.05438813]
[1770466158759,1.22010736,2049.0,2047.3,0.67043498]
[1770466159085,2.41446601,2049.0,2047.7,0.05438813]
[1770466159394,0.33265403,2049.4,2048.4,0.05438813]
[1770466159598,1.21968008,2049.8,2048.6,0.05438813]
[1770466159800,1.09766975,2049.8,2048.9,0.05438813]
[1770466159984,1.09766975,2049.8,2048.6,0.05438813]
[1770466159985,1.19435865,2050.0,2048.0,0.05438813]
[1770466160161,1.19435865,2050.0,2048.9,0.05438813]
[1770466160357,2.4136924,2050.3,2048.7,1.22023958]
[1770466160683,1.19435865,2050.2,2048.9,0.05438813]
[1770466160861,1.19435865,2050.2,2049.2,0.05438813]
[1770466161054,1.21933375,2050.3,2049.2,0.05438813]
[1770466161385,0.63390691,2050.2,2048.9,1.27454567]
[1770466162288,1.46168885,2050.4,2049.2,1.21995124]
[1770466162661,1.19435865,2050.2,2048.6,0.05438813]
[1770466162856,1.19435865,2050.2,2048.7,0.05438813]
[1770466163084,1.19435865,2050.2,2048.9,1.2201271]
[1770466163291,1.19435865,2050.2,2048.6,0.05438813]
[1770466163496,1.19435865,2050.2,2049.0,1.22006344]
[1770466163667,1.19435865,2050.2,2048.4,4.88166227]
[1770466163866,1.19435865,2050.3,2049.0,1.22007259]
[1770466164071,1.19435865,2050.3,2049.0,1.22006658]
[1770466164293,1.46168885,2050.4,2049.2,1.2199621]
[1770466164885,0.002,2050.2,2049.2,1.2199621]
[1770466165403,1.19435865,2049.8,2048.8,0.001]
[1770466165566,1.19435865,2050.0,2048.8,0.001]
[1770466165768,1.22666647,2049.9,2048.8,0.001]
[1770466165966,2.42102512,2049.9,2048.8,0.001]
[1770466166267,1.21963118,2049.8,2048.8,0.001]
[1770466166686,1.19435865,2049.7,2048.8,0.001]
[1770466166879,1.19435865,2049.7,2048.1,1.22060904]
[1770466167212,1.19435865,2049.0,2047.3,0.61604685]
[1770466167366,1.19435865,2048.8,2047.4,0.37903839]
[1770466167565,1.19435865,2048.8,2046.9,0.05438813]
[1770466167881,1.19435865,2048.6,2047.0,1.2212838]
[1770466168067,1.19435865,2048.6,2046.6,0.61623774]
[1770466168267,1.19435865,2048.6,2046.8,4.88548283]
[1770466168268,1.19435865,2048.4,2046.8,4.88548283]
[1770466168466,1.19435865,2048.4,2046.9,1.22135912]
[1770466168667,1.19435865,2048.4,2046.8,1.22138541]
[1770466168869,1.19435865,2048.2,2046.4,4.88659947]
[1770466169071,1.19435865,2047.8,2046.0,1.22186294]
[1770466169367,1.19435865,2047.8,2046.1,0.05438813]
[1770466169592,1.19435865,2047.8,2046.3,1.22168231]
[1770466169766,1.19435865,2047.8,2046.4,4.88662122]
[1770466170121,1.19435865,2047.8,2046.5,1.22156222]
[1770466170265,1.19435865,2047.8,2046.5,1.22158442]
[1770466170469,1.19435865,2047.8,2045.9,1.25327806]
[1770466170470,1.19435865,2047.3,2045.6,1.22210235]
[1770466170662,1.19435865,2047.3,2045.6,1.22210361]
[1770466170898,1.24874678,2047.3,2045.6,1.22211831]
[1770466171071,1.19435865,2047.3,2045.3,16.01576885]
[1770466171262,1.19435865,2047.3,2045.0,12.37997221]
[1770466171484,1.19435865,2046.7,2045.1,2.46043034]
[1770466171678,1.19435865,2046.7,2045.2,1.22236461]
[1770466171879,1.24874678,2046.7,2044.6,0.05438813]
[1770466172107,0.1024,2046.6,2045.8,1.22197226]
[1770466172290,12.26666467,2047.0,2044.8,1.25327806]
[1770466172591,1.19435865,2046.8,2044.9,1.2769418]
[1770466172794,1.19435865,2046.8,2045.0,0.74204345]
[1770466173202,4.88175184,2048.5,2046.4,1.25327806]
[1770466173403,1.22666647,2048.9,2047.1,11.07230602]
[1770466173404,0.1024,2048.3,2047.1,11.07230602]
[1770466173607,1.22032798,2048.7,2047.1,11.07230602]
[1770466173783,1.22032798,2048.7,2046.5,0.29950613]
[1770466173784,2.41464736,2048.7,2046.5,0.05438813]
[1770466173984,11.07230602,2048.0,2046.3,1.25327806]
[1770466174218,1.35114678,2047.9,2045.6,0.05438813]
[1770466174384,1.22106085,2047.4,2045.4,1.22225481]
[1770466174589,12.26666467,2047.2,2045.4,1.22225481]
[1770466174814,12.26666467,2047.2,2045.6,0.7]
[1770466174986,0.1024,2047.1,2045.6,0.7]
[1770466175185,1.29675865,2047.1,2045.4,1.22225481]
[1770466175387,0.05438813,2046.7,2045.5,0.61114795]
[1770466175608,11.07230602,2046.0,2044.7,1.22261828]
[1770466175825,0.05438813,2046.7,2044.3,1.25327806]
[1770466175826,0.1024,2046.6,2045.3,1.22228506]
[1770466175991,1.32147029,2046.8,2045.3,1.22227727]
[1770466176197,1.32147029,2046.8,2045.3,1.22231259]
[1770466176702,0.1024,2046.8,2045.8,0.05438813]
[1770466177018,0.1024,2046.8,2046.1,0.05438813]
[1770466177189,0.1024,2046.8,2045.6,0.05438813]
[1770466177390,0.1024,2046.8,2045.3,1.27670072]
[1770466177590,0.1024,2046.8,2045.4,0.6165959]
[1770466178095,0.1024,2046.8,2046.5,0.001]
[1770466178302,0.1024,2046.8,2045.4,0.6165959]
[1770466178502,0.1024,2046.8,2045.7,0.001]
[1770466178712,1.22147847,2046.7,2045.7,0.001]
[1770466178914,1.94481724,2046.7,2045.7,0.001]
[1770466179630,0.1024,2046.7,2045.7,0.001]
[1770466180003,1.24234528,2047.8,2046.1,0.05438813]
[1770466180212,2.43977341,2048.0,2045.8,1.23786584]
[1770466180516,0.05438813,2047.7,2045.8,1.23786584]
[1770466180716,1.21907029,2047.3,2045.7,0.001]
[1770466181095,1.21907029,2047.3,2045.8,1.22200802]
[1770466181325,1.21907029,2047.3,2045.7,0.001]
[1770466181539,2.55604673,2047.2,2045.7,0.001]
[1770466182609,11.07230602,2046.2,2044.4,4.89134024]
[1770466182808,1.27604567,2046.4,2044.4,4.94572837]
[1770466183007,0.05438813,2046.1,2044.4,4.89134024]
[1770466183241,1.21907029,2046.1,2044.4,1.22285267]
[1770466183442,0.1024,2046.0,2044.5,0.61144631]
[1770466183640,0.15678813,2046.0,2044.5,0.61144631]
[1770466183831,0.15678813,2046.0,2044.3,1.2228725]
[1770466184028,0.1024,2046.0,2044.3,1.2228725]
[1770466184621,2.45364673,2047.2,2044.4,17.254717]
[1770466184824,0.33246849,2047.1,2045.2,0.05438813]
[1770466185146,1e-08,2047.1,2046.2,0.05438813]
[1770466185331,4.88287906,2048.0,2045.8,12.31017186]
[1770466185511,1.21907029,2047.8,2045.8,1.18347771]
[1770466185711,12.29137631,2047.5,2045.4,0.05438813]
[1770466185919,11.07230602,2047.1,2045.3,1.18347771]
[1770466186140,1.21907029,2047.3,2045.4,0.05438813]
[1770466186446,5.24438813,2048.5,2045.4,0.05438813]
[1770466186447,1.21907029,2048.4,2046.7,0.05438813]
[1770466186621,1.22052433,2048.3,2046.8,1.2214188]
[1770466186939,0.38673801,2048.7,2047.0,0.05438813]
[1770466186940,0.73214603,2048.2,2047.0,0.05438813]
[1770466187147,1.22047196,2048.4,2046.9,0.61614821]
[1770466187654,4.88139915,2048.6,2046.9,0.61614821]
[1770466187845,4.93578728,2048.6,2046.9,0.61614821]
[1770466188251,11.0375239,2048.4,2046.7,1.2214405]
[1770466188552,0.05438813,2048.0,2045.9,1.18347771]
[1770466188715,1.22070312,2048.0,2046.0,1.22189638]
[1770466188913,1.71410395,2047.9,2046.5,0.05438813]
[1770466189115,0.33234988,2048.7,2047.1,0.05438813]
[1770466189346,0.33234988,2048.7,2047.4,0.05438813]
[1770466190033,0.33234988,2048.7,2047.4,12.22100161]
[1770466190222,1.21907029,2049.7,2047.5,0.05438813]
[1770466190223,1.21975019,2049.6,2047.5,0.05438813]
[1770466190420,12.25727409,2049.6,2047.4,1.18347771]
[1770466190618,1.22004782,2049.1,2047.5,1.22100122]
[1770466191232,0.05438813,2048.9,2046.9,1.18347771]
[1770466191432,0.002,2047.7,2047.2,4.88466921]
[1770466191629,0.002,2047.7,2046.5,11.09191203]
[1770466191848,0.002,2047.7,2047.2,1.2211791]
[1770466192157,0.2551063,2049.2,2047.9,1.18347771]
[1770466192326,1.22140056,2050.2,2048.4,1.23786584]
[1770466192527,1.21937703,2050.3,2048.4,1.23786584]
[1770466192739,0.4878,2049.6,2048.8,1.22022647]
[1770466193054,0.4878,2049.6,2049.1,0.05438813]
[1770466193226,0.4878,2048.4,2048.1,1.2206257]
[1770466193423,0.33537456,2048.4,2048.3,0.05438813]
[1770466193620,1.21907029,2049.9,2048.1,1.2206257]
[1770466193955,0.2335703,2050.2,2048.0,0.05438813]
[1770466194140,0.70063683,2050.2,2049.2,0.05438813]
[1770466194336,0.57386503,2050.4,2048.9,0.05438813]
[1770466194539,0.57386503,2050.4,2049.2,0.05438813]
[1770466194739,0.57386503,2050.4,2049.5,0.05438813]
[1770466195247,0.24240033,2050.4,2049.3,1.21992875]
[1770466195449,1.46169503,2050.4,2048.6,1.23786584]
[1770466195747,0.633872,2050.3,2048.9,1.22014818]
[1770466195945,0.633872,2050.3,2049.2,1.21997207]
[1770466196145,0.633872,2050.3,2049.1,1.22000397]
[1770466196352,0.633872,2050.3,2049.1,1.22003939]
[1770466196527,0.633872,2050.3,2049.2,1.21998804]
[1770466196732,1.46167595,2050.4,2049.3,1.82992133]
[1770466196945,0.24240033,2050.4,2049.3,1.82992133]
[1770466197450,1.46167877,2050.4,2049.3,1.82992133]
[1770466197822,4.8754473,2051.1,2049.3,1.82992133]
[1770466197823,1.21907029,2052.2,2049.6,1.23786584]
[1770466198023,1.35227825,2051.4,2049.8,1.18347771]
[1770466198250,0.62269908,2051.3,2049.4,1.21986923]
[1770466198448,0.62269908,2051.3,2050.3,0.05438813]
[1770466198647,0.62269908,2051.3,2049.6,0.05438813]
[1770466198865,0.62269908,2051.3,2049.3,5.54385917]
[1770466198866,12.25659419,2051.0,2049.3,0.60999412]
[1770466199050,12.25659419,2051.0,2049.3,1.21988994]
[1770466199051,12.31098232,2051.0,2049.3,1.21988994]
[1770466199364,11.0375239,2050.2,2048.6,1.22031057]
[1770466199524,11.0375239,2050.2,2048.5,0.05438813]
[1770466199724,11.0375239,2050.2,2048.8,1.22022615]
[1770466199949,11.0375239,2050.2,2048.6,4.88136867]
[1770466200202,1.10375239,2050.1,2048.7,0.49357568]
[1770466200334,11.0375239,2049.7,2048.1,0.05438813]
[1770466200524,1.10375239,2050.1,2048.4,0.05438813]
[1770466200525,0.1024,2049.9,2048.4,0.05438813]
[1770466200725,1.21963118,2049.8,2048.4,1.2204539]
[1770466200950,0.62005559,2049.7,2048.4,1.22046399]
[1770466201156,0.62005559,2049.7,2048.8,0.05438813]
[1770466201351,1.32147029,2049.5,2047.6,0.05438813]
[1770466201554,11.0375239,2048.8,2047.2,0.61063411]
[1770466201730,11.0375239,2048.4,2047.3,0.05438813]
[1770466201937,1.21907029,2048.7,2046.9,0.05438813]
[1770466202252,5.2924,2049.1,2047.5,0.05438813]
[1770466202466,0.1024,2049.1,2047.2,0.05438813]
[1770466202750,1.22010736,2049.0,2047.2,0.05438813]
[1770466202953,1.22010736,2049.0,2046.8,0.05438813]
[1770466202954,12.25659419,2048.4,2046.8,0.05438813]
[1770466203123,1.21907029,2048.3,2046.4,1.22165572]
[1770466203324,11.0375239,2048.0,2046.4,1.2216569]
[1770466203533,11.0375239,2048.0,2046.2,4.94142542]
[1770466203748,1.10375239,2047.9,2046.6,0.05438813]
[1770466204054,2.32282268,2047.9,2046.3,0.49414254]
[1770466204247,1.21907029,2047.9,2046.3,0.49414254]
[1770466204450,11.0375239,2046.8,2045.6,0.001]
[1770466204838,1.21907029,2048.5,2046.3,1.23786584]
[1770466205051,1.32147029,2048.4,2046.7,0.05438813]
[1770466205252,0.62031659,2048.3,2046.8,0.05438813]
[1770466205429,0.62031659,2048.3,2046.5,0.05438813]
[1770466205430,1.83938688,2048.3,2046.5,0.05438813]
[1770466205757,11.0375239,2048.0,2046.5,0.05438813]
[1770466205960,11.0375239,2048.0,2046.1,0.05438813]
[1770466206261,12.20865212,2048.0,2046.1,0.05438813]
[1770466206562,1.22086521,2047.9,2046.1,0.05438813]
[1770466206868,2.39199343,2047.9,2046.1,0.05438813]
[1770466207039,11.0375239,2047.6,2045.9,1.22194521]
[1770466207235,12.20865212,2047.6,2045.8,1.22196153]
[1770466207439,1.22086521,2047.5,2045.8,1.22198481]
[1770466207847,2.39199343,2047.5,2045.6,1.22308176]
[1770466208050,12.20865212,2047.2,2045.6,0.001]
[1770466208241,1.17112822,2047.1,2045.6,0.001]
[1770466208558,1.22086521,2047.0,2045.6,0.001]
[1770466208957,1.22147847,2046.7,2045.6,0.001]
[1770466210357,11.0375239,2046.4,2045.4,0.001]
[1770466210536,0.1024,2046.6,2045.4,0.001]
[1770466210732,11.0375239,2046.1,2044.5,1.22377438]
[1770466211030,1.2219561,2045.9,2044.5,0.001]
[1770466212350,1.2219561,2045.9,2043.8,4.89278648]
[1770466212351,11.0375239,2044.7,2043.4,1.22343459]
[1770466212667,1.17118051,2045.0,2043.4,1.22342396]
[1770466212833,1.17118051,2045.0,2043.2,4.89518581]
[1770466213160,0.3359703,2045.4,2043.4,0.05438813]
[1770466213161,2.44346548,2044.9,2043.4,0.05438813]
[1770466213332,1.22259504,2044.9,2043.3,1.71845451]
[1770466213529,1.22259504,2044.9,2043.4,0.05438813]
[1770466213752,1.22259504,2044.9,2043.3,1.71845451]
[1770466214136,1.22259504,2044.9,2043.4,0.05438813]
[1770466214865,1.22259504,2044.9,2043.3,1.71845451]
[1770466215156,1.22267325,2044.7,2043.5,1.22339124]
[1770466215344,1.22267325,2044.7,2043.4,1.22341215]
[1770466215545,1.22267325,2044.7,2043.3,0.49495739]
[1770466215748,1.22267325,2044.7,2043.2,1.22453133]
[1770466215927,1.22267325,2044.7,2043.4,1.22344999]
[1770466216133,12.26019715,2044.7,2043.3,1.22350974]
[1770466216343,12.26019715,2044.7,2043.2,1.22453692]
[1770466216532,12.26019715,2044.7,2043.2,0.001]
[1770466216733,1.71508699,2044.6,2043.2,0.001]
[1770466217060,1.22279285,2044.5,2043.2,0.001]
[1770466218138,1.22279285,2044.5,2043.6,0.001]
[1770466222240,2.39397336,2044.5,2043.6,0.001]
[1770466222653,11.0375239,2044.3,2043.6,0.001]
[1770466222965,2.2749329,2044.2,2042.5,0.02560344]
[1770466223168,2.2749329,2044.2,2042.8,1.22380463]
[1770466223364,1.10375239,2044.2,2042.8,1.22380463]
[1770466223539,1.17118051,2044.4,2042.5,0.02584305]
[1770466223740,1.17118051,2044.4,2042.7,1.22387036]
[1770466224150,11.0375239,2044.3,2042.7,1.22387036]
[1770466224545,12.20870441,2044.3,2042.7,1.22387036]
[1770466224738,1.17118051,2044.2,2042.6,1.22389625]
[1770466224962,1.22087044,2044.1,2042.7,0.61455079]
[1770466225159,1.22087044,2044.1,2042.7,0.66893892]
[1770466225355,0.1024,2044.4,2042.7,0.61455079]
[1770466225665,1.22291248,2044.3,2042.8,1.22381045]
[1770466225972,12.20870441,2044.2,2042.7,1.83838268]
[1770466226754,11.0375239,2044.2,2042.7,1.83838268]
[1770466227156,1.22291248,2044.3,2042.7,1.83838268]
[1770466227475,1.22303214,2044.1,2042.8,2.0221755]
[1770466228373,0.1024,2044.7,2043.5,0.05438813]
[1770466228692,5.24438813,2045.1,2043.3,1.19545952]
[1770466228844,1.6281912,2045.0,2043.3,1.19545952]
[1770466229039,0.05438813,2044.8,2043.3,1.19545952]
[1770466229670,1.22267325,2044.7,2043.4,1.22345111]
[1770466230052,2.85071559,2045.0,2043.5,1.19545952]
[1770466230249,1.22252439,2045.0,2043.5,1.19545952]
[1770466230651,1.22252439,2045.0,2043.3,1.22349074]
[1770466230855,0.05438813,2044.5,2043.0,1.19545952]
[1770466231087,0.05438813,2044.5,2042.9,4.89494891]
[1770466231376,16.38431203,2044.5,2043.4,0.001]
[1770466231548,1.75554925,2044.4,2043.4,0.001]
[1770466231949,1.22291248,2044.3,2043.4,0.001]
[1770466232285,0.002,2044.8,2043.6,1.19545952]
[1770466232500,0.002,2044.8,2043.7,2.016538]
[1770466232649,0.002,2044.8,2043.8,1.19545952]
[1770466233863,0.002,2044.8,2043.9,1.22315181]
[1770466234051,0.002,2044.8,2044.0,0.73112186]
[1770466234247,0.002,2044.8,2043.8,2.41866651]
[1770466234453,0.002,2044.8,2043.8,1.22320699]
[1770466237971,0.002,2044.8,2043.4,0.001]
[1770466238174,0.002,2044.8,2043.5,0.43869922]
[1770466238377,0.002,2045.0,2043.8,1.20848063]
[1770466238582,1.18317525,2047.4,2045.2,1.26286876]
[1770466238877,0.25535339,2046.7,2045.9,0.05438813]
[1770466239056,0.25535339,2046.7,2046.1,0.05438813]
[1770466239595,1.51143066,2047.5,2045.5,1.20848063]
[1770466239778,1.37698962,2047.4,2045.5,1.20848063]
[1770466240284,1.37698962,2047.4,2045.6,1.22213531]
[1770466240285,1.22118014,2047.2,2045.6,1.22213531]
[1770466241379,0.1024,2047.3,2045.7,0.05438813]
[1770466241560,0.32825541,2047.5,2046.5,1.20848063]
[1770466241755,0.06638531,2047.5,2046.7,1.20848063]
[1770466242185,0.06638531,2047.5,2046.7,2.42995489]
[1770466242487,0.06638531,2047.5,2046.8,1.20848063]
[1770466242987,0.26187011,2047.4,2046.8,1.20848063]
[1770466243192,1.22040517,2048.5,2046.8,1.20848063]
[1770466243374,0.32885833,2048.4,2046.8,1.20848063]
[1770466244063,0.32885833,2048.4,2047.2,1.20848063]
[1770466244683,0.002,2047.3,2047.2,1.20848063]
[1770466244992,0.32885833,2048.4,2047.2,1.20848063]
[1770466245166,0.002,2047.5,2047.2,1.20848063]
[1770466245367,0.05438813,2048.3,2046.9,4.88538474]
[1770466245575,0.05438813,2048.0,2046.8,1.22139913]
[1770466245782,11.0375239,2048.3,2046.9,1.22131904]
[1770466245981,11.0375239,2048.3,2046.5,0.05438813]
[1770466246284,1.22058392,2048.2,2046.6,1.22153611]
[1770466246502,1.71404435,2048.1,2046.8,1.27579215]
[1770466247088,0.33085833,2048.4,2047.2,0.05438813]
[1770466247288,0.33085833,2048.4,2047.5,0.05438813]
[1770466248292,0.33085833,2048.4,2046.7,4.88590973]
[1770466248293,0.33085833,2048.4,2047.1,0.05438813]
[1770466248492,0.33085833,2048.4,2046.7,1.26286876]
[1770466248493,0.33085833,2048.4,2046.8,4.88564619]
[1770466248791,0.33085833,2048.4,2047.3,1.22108451]
[1770466249289,1.55132321,2048.4,2047.1,4.88493015]
[1770466249468,1.55132321,2048.4,2047.3,1.22111668]
[1770466249678,1.55132321,2048.4,2046.7,0.05438813]
[1770466249859,0.7616219,2048.3,2047.0,1.22126066]
[1770466250190,1.22058392,2048.2,2046.8,4.88563832]
[1770466250491,1.22058392,2048.2,2046.8,1.2214188]
[1770466250865,13.43962506,2048.2,2046.7,1.2214467]
[1770466251061,13.43962506,2048.2,2046.7,0.05438813]
[1770466251264,1.94116731,2048.1,2046.7,1.27584659]
[1770466251664,2.40375917,2048.2,2046.7,1.27586464]
[1770466252288,2.40375917,2048.2,2047.0,0.05438813]
[1770466252661,2.40375917,2048.2,2047.1,0.05438813]
[1770466252864,1.08979096,2048.3,2047.2,0.05438813]
[1770466253068,0.32816906,2048.3,2047.2,0.05438813]
[1770466253373,0.32816906,2048.3,2047.2,1.26286876]
[1770466253579,0.32816906,2048.3,2047.2,0.05438813]
[1770466253893,0.32816906,2048.3,2046.8,1.20848063]
[1770466254092,1.18317525,2048.2,2046.6,1.22149227]
[1770466254391,1.22070312,2048.0,2046.6,1.22149227]
[1770466255493,1.22070312,2048.0,2046.3,6.09530601]
[1770466255663,1.18317525,2047.5,2046.0,1.22188289]
[1770466255867,12.21904114,2046.8,2044.7,1.26286876]
[1770466256078,1.22190411,2046.7,2045.3,4.88909321]
[1770466256276,1.22153816,2046.6,2044.9,0.05438813]
[1770466256676,1.22153816,2046.6,2044.8,1.22261345]
[1770466256677,11.03586589,2046.0,2044.8,1.22261345]
[1770466256868,11.03586589,2046.0,2044.6,1.22273262]
[1770466257064,1.18317525,2046.1,2044.7,1.27705388]
[1770466257265,2.40471341,2046.6,2045.0,0.05438813]
[1770466257490,12.21904114,2046.5,2044.8,0.61678175]
[1770466257698,1.28557525,2046.4,2044.8,0.61678175]
[1770466257882,11.09025402,2046.5,2044.3,1.22290395]
[1770466257883,1.18317525,2045.9,2044.3,1.22290395]
[1770466258087,1.18317525,2045.9,2044.3,1.22287261]
[1770466258298,1.22201583,2045.8,2044.2,1.22297231]
[1770466258994,1.22201583,2045.8,2044.4,0.05438813]
[1770466259200,2.40516514,2045.9,2044.4,0.05438813]
[1770466259497,1.18317525,2045.7,2044.0,0.001]
[1770466259711,11.03586589,2045.4,2044.0,0.001]
[1770466259871,11.03586589,2045.4,2044.0,1.22405756]
[1770466260070,11.03586589,2045.4,2044.0,0.001]
[1770466260396,1.22231457,2045.3,2044.0,0.001]
[1770466260596,1.71474388,2045.2,2044.0,0.001]
[1770466260798,1.22231457,2045.3,2044.0,0.001]
[1770466261204,1.18317525,2045.1,2044.0,0.001]
[1770466261515,11.03586589,2044.8,2044.0,0.001]
[1770466261706,0.33530361,2044.7,2044.0,0.001]
[1770466262378,1.55799789,2044.7,2044.0,0.001]
[1770466262579,0.32881014,2044.6,2044.0,0.001]
[1770466263475,0.32881014,2044.6,2043.4,0.001]
[1770466263788,2.07659451,2044.6,2043.4,1.22442975]
[1770466263994,0.32996624,2044.5,2043.4,1.22442975]
[1770466264301,0.32996624,2044.5,2043.5,0.05438813]
[1770466264504,1.55276467,2044.5,2043.4,0.001]
[1770466264800,0.32996624,2044.5,2043.5,1.22337555]
[1770466264986,0.32996624,2044.5,2043.5,1.27776368]
[1770466265193,0.32996624,2044.5,2043.8,0.05438813]
[1770466265598,0.32996624,2044.5,2043.6,0.61724118]